[Event "GrandPrix_29.05"]
[Site "Chess.com"]
[Date "2020.05.29"]
[Round "1"]
[White "Karateloru"]
[Black "swisspower96"]
[Result "0-1"]
[WhiteElo "2053"]
[BlackElo "2531"]
[TimeControl "600+2"]
[EndTime "9:18:06 PDT"]
[Termination "swisspower96 won by resignation"]

1. e4 {[%clk 0:09:57.7]} 1... c5 {[%clk 0:09:59.9]} 2. Nf3 {[%clk 0:09:57.8]}
2... Nc6 {[%clk 0:10:00.3]} 3. d4 {[%clk 0:09:51]} 3... cxd4 {[%clk 0:10:01.3]}
4. Nxd4 {[%clk 0:09:52.4]} 4... Nf6 {[%clk 0:10:02.9]} 5. Nc3 {[%clk 0:09:52.8]}
5... e5 {[%clk 0:10:03.8]} 6. Ndb5 {[%clk 0:09:53.4]} 6... d6 {[%clk 0:10:05]}
7. Bg5 {[%clk 0:09:54]} 7... a6 {[%clk 0:10:05.5]} 8. Na3 {[%clk 0:09:54.9]}
8... b5 {[%clk 0:10:06.7]} 9. Nd5 {[%clk 0:09:52.2]} 9... Be7 {[%clk 0:10:07.2]}
10. Bxf6 {[%clk 0:09:52.9]} 10... Bxf6 {[%clk 0:10:08.5]} 11. c3 {[%clk
0:09:32.5]} 11... Rb8 {[%clk 0:10:08]} 12. Nc2 {[%clk 0:09:32.6]} 12... Bg5
{[%clk 0:10:03.6]} 13. a4 {[%clk 0:09:32.8]} 13... bxa4 {[%clk 0:10:03.4]} 14.
Ncb4 {[%clk 0:09:33.6]} 14... Nxb4 {[%clk 0:10:03.9]} 15. cxb4 {[%clk
0:09:11.2]} 15... Bd7 {[%clk 0:09:58.6]} 16. Bxa6 {[%clk 0:08:58]} 16... O-O
{[%clk 0:09:58.7]} 17. O-O {[%clk 0:08:52.3]} 17... Qe8 {[%clk 0:09:58.1]} 18.
b3 {[%clk 0:08:06.7]} 18... axb3 {[%clk 0:09:56.3]} 19. Qxb3 {[%clk 0:08:07.5]}
19... Kh8 {[%clk 0:09:58]} 20. Rab1 {[%clk 0:07:41.6]} 20... f5 {[%clk
0:09:41.3]} 21. exf5 {[%clk 0:07:40.8]} 21... Bxf5 {[%clk 0:09:37.5]} 22. b5
{[%clk 0:07:19.7]} 22... Bxb1 {[%clk 0:08:29.2]} 23. Rxb1 {[%clk 0:07:13.4]}
23... Qf7 {[%clk 0:08:27.6]} 24. Rb2 {[%clk 0:06:09]} 24... Qa7 {[%clk
0:07:31.2]} 25. g3 {[%clk 0:05:45.4]} 25... e4 {[%clk 0:05:57.1]} 26. Kg2 {[%clk
0:04:40]} 26... Rf5 {[%clk 0:04:37.8]} 27. Qc4 {[%clk 0:04:37.3]} 27... Qf7
{[%clk 0:03:24.2]} 28. Ne3 {[%clk 0:04:23.9]} 28... Bxe3 {[%clk 0:01:40]} 29.
Qxf7 {[%clk 0:04:23.1]} 29... Rxf7 {[%clk 0:01:41.3]} 30. fxe3 {[%clk
0:04:24.3]} 30... d5 {[%clk 0:01:42.1]} 31. b6 {[%clk 0:03:44.8]} 31... Rf6
{[%clk 0:01:42]} 32. b7 {[%clk 0:03:46]} 32... Rxa6 {[%clk 0:01:42.9]} 33. Rc2
{[%clk 0:03:47.1]} 33... Rd6 {[%clk 0:01:43.1]} 0-1

[Event "GrandPrix_29.05"]
[Site "Chess.com"]
[Date "2020.05.29"]
[Round "1"]
[White "AnotherGrumpy"]
[Black "DenLaz"]
[Result "0-1"]
[WhiteElo "1823"]
[BlackElo "1827"]
[TimeControl "600+2"]
[EndTime "9:18:06 PDT"]
[Termination "DenLaz won by resignation"]

1. d4 {[%clk 0:09:54.2]} 1... d5 {[%clk 0:10:00.1]} 2. c4 {[%clk 0:09:54.5]}
2... c6 {[%clk 0:09:55.5]} 3. Nc3 {[%clk 0:09:43.5]} 3... Nf6 {[%clk 0:09:53.5]}
4. e3 {[%clk 0:09:40.1]} 4... Bf5 {[%clk 0:09:52.1]} 5. cxd5 {[%clk 0:09:36.3]}
5... cxd5 {[%clk 0:09:51.1]} 6. Qb3 {[%clk 0:09:37.4]} 6... Bc8 {[%clk
0:09:50.8]} 7. Nf3 {[%clk 0:09:36]} 7... e6 {[%clk 0:09:47.9]} 8. Bd3 {[%clk
0:09:27.8]} 8... Nc6 {[%clk 0:09:44.5]} 9. O-O {[%clk 0:09:26.3]} 9... Be7
{[%clk 0:09:16.6]} 10. Bd2 {[%clk 0:09:18.9]} 10... O-O {[%clk 0:09:12.3]} 11.
Rac1 {[%clk 0:09:18.5]} 11... Bd7 {[%clk 0:09:00.6]} 12. Ne5 {[%clk 0:08:57.5]}
12... Na5 {[%clk 0:07:39.9]} 13. Qd1 {[%clk 0:07:22.8]} 13... a6 {[%clk
0:06:51.1]} 14. g4 {[%clk 0:06:38.9]} 14... g6 {[%clk 0:06:29.4]} 15. f4 {[%clk
0:06:17.3]} 15... Nc6 {[%clk 0:06:19.6]} 16. f5 {[%clk 0:05:54.7]} 16... Bd6
{[%clk 0:05:19.8]} 17. Nxd7 {[%clk 0:05:22.4]} 17... Nxd7 {[%clk 0:05:12.9]} 18.
Qf3 {[%clk 0:05:01.7]} 18... Qh4 {[%clk 0:04:50.8]} 19. Qg2 {[%clk 0:05:00.5]}
19... gxf5 {[%clk 0:04:42.8]} 20. gxf5+ {[%clk 0:04:32.5]} 20... Kh8 {[%clk
0:04:42.1]} 21. Kh1 {[%clk 0:04:33]} 21... Rg8 {[%clk 0:04:37.9]} 22. Qf2 {[%clk
0:04:28.1]} 22... Qh3 {[%clk 0:03:51.5]} 23. Rg1 {[%clk 0:03:16.7]} 23... Nxd4
{[%clk 0:03:46.9]} 24. Rgf1 {[%clk 0:02:21.4]} 24... Nf3 {[%clk 0:03:36.2]} 0-1

[Event "GrandPrix_29.05"]
[Site "Chess.com"]
[Date "2020.05.29"]
[Round "1"]
[White "rim1618"]
[Black "Haapana"]
[Result "1-0"]
[WhiteElo "2474"]
[BlackElo "2387"]
[TimeControl "600+2"]
[EndTime "9:18:10 PDT"]
[Termination "rim1618 won by resignation"]

1. d4 {[%clk 0:09:59.7]} 1... d5 {[%clk 0:09:46.9]} 2. Nf3 {[%clk 0:09:58.5]}
2... e6 {[%clk 0:09:40.4]} 3. c4 {[%clk 0:09:59.1]} 3... c5 {[%clk 0:09:38.8]}
4. cxd5 {[%clk 0:09:57.5]} 4... exd5 {[%clk 0:09:38.5]} 5. g3 {[%clk 0:09:58.4]}
5... Nc6 {[%clk 0:09:38.2]} 6. Bg2 {[%clk 0:09:59.4]} 6... Nf6 {[%clk
0:09:37.7]} 7. O-O {[%clk 0:10:00.4]} 7... Be7 {[%clk 0:09:38.6]} 8. Nc3 {[%clk
0:09:50.2]} 8... O-O {[%clk 0:09:38.6]} 9. dxc5 {[%clk 0:09:47.1]} 9... Bxc5
{[%clk 0:09:34.8]} 10. b3 {[%clk 0:09:44.4]} 10... h6 {[%clk 0:08:52.5]} 11. Bb2
{[%clk 0:09:44.4]} 11... a6 {[%clk 0:08:31.1]} 12. e3 {[%clk 0:09:38]} 12... Ba7
{[%clk 0:07:11.1]} 13. Ne2 {[%clk 0:09:36.3]} 13... Bf5 {[%clk 0:06:56.7]} 14.
Nf4 {[%clk 0:09:13.1]} 14... Be4 {[%clk 0:05:07.1]} 15. Bxf6 {[%clk 0:08:53.7]}
15... Qxf6 {[%clk 0:05:06.5]} 16. Nxd5 {[%clk 0:08:53.7]} 16... Qb2 {[%clk
0:05:07.1]} 17. Nd2 {[%clk 0:07:26.6]} 17... Bxd5 {[%clk 0:02:27.1]} 18. Bxd5
{[%clk 0:07:26]} 18... Rad8 {[%clk 0:02:27.9]} 19. Nc4 {[%clk 0:07:06.6]} 19...
Qf6 {[%clk 0:00:45.7]} 20. Qf3 {[%clk 0:06:54.3]} 20... Qxf3 {[%clk 0:00:21.9]}
21. Bxf3 {[%clk 0:06:56.2]} 21... b5 {[%clk 0:00:22.5]} 22. Bxc6 {[%clk
0:06:46.5]} 22... bxc4 {[%clk 0:00:23.7]} 23. bxc4 {[%clk 0:06:48.4]} 23... Rd2
{[%clk 0:00:24.4]} 24. Bd5 {[%clk 0:06:40.9]} 24... Rb8 {[%clk 0:00:23.3]} 25.
Rfb1 {[%clk 0:06:36.7]} 25... Rbb2 {[%clk 0:00:23.7]} 26. Rxb2 {[%clk
0:06:34.2]} 26... Rxb2 {[%clk 0:00:25.6]} 27. Rd1 {[%clk 0:05:00.8]} 27... Kf8
{[%clk 0:00:11]} 28. Bc6 {[%clk 0:04:55.5]} 28... Bc5 {[%clk 0:00:03.5]} 1-0

[Event "GrandPrix_29.05"]
[Site "Chess.com"]
[Date "2020.05.29"]
[Round "1"]
[White "temus_galaktionov"]
[Black "tigra"]
[Result "0-1"]
[WhiteElo "2134"]
[BlackElo "2602"]
[TimeControl "600+2"]
[EndTime "9:18:11 PDT"]
[Termination "tigra won by resignation"]

1. d4 {[%clk 0:09:59.6]} 1... Nf6 {[%clk 0:09:57.3]} 2. Nf3 {[%clk 0:09:59]}
2... g6 {[%clk 0:09:57.6]} 3. c4 {[%clk 0:09:52.9]} 3... Bg7 {[%clk 0:09:57.1]}
4. Nc3 {[%clk 0:09:50.6]} 4... d6 {[%clk 0:09:57.6]} 5. e4 {[%clk 0:09:48.6]}
5... O-O {[%clk 0:09:58.2]} 6. Be2 {[%clk 0:09:48]} 6... e5 {[%clk 0:09:58.1]}
7. O-O {[%clk 0:09:48]} 7... Nc6 {[%clk 0:09:56.2]} 8. d5 {[%clk 0:09:47.9]}
8... Ne7 {[%clk 0:09:56.6]} 9. Ne1 {[%clk 0:09:49.4]} 9... Ne8 {[%clk
0:09:51.9]} 10. f3 {[%clk 0:09:50.1]} 10... f5 {[%clk 0:09:52.8]} 11. g4 {[%clk
0:09:51.5]} 11... c6 {[%clk 0:09:53.1]} 12. Nd3 {[%clk 0:09:51.4]} 12... b5
{[%clk 0:09:50.7]} 13. b3 {[%clk 0:09:41.2]} 13... bxc4 {[%clk 0:06:04.7]} 14.
bxc4 {[%clk 0:09:43.1]} 14... cxd5 {[%clk 0:06:05.7]} 15. cxd5 {[%clk
0:09:34.6]} 15... Qb6+ {[%clk 0:05:36.1]} 16. Kg2 {[%clk 0:09:30.1]} 16... fxe4
{[%clk 0:05:31.4]} 17. fxe4 {[%clk 0:09:29.5]} 17... Rxf1 {[%clk 0:05:27.6]} 18.
Qxf1 {[%clk 0:09:26]} 18... Qd4 {[%clk 0:05:20]} 19. Bg5 {[%clk 0:08:38]} 19...
Qxc3 {[%clk 0:03:44.9]} 20. Bxe7 {[%clk 0:08:37.7]} 20... Ba6 {[%clk 0:03:17.6]}
21. Rc1 {[%clk 0:08:23.7]} 21... Qd2 {[%clk 0:02:49]} 22. Rd1 {[%clk 0:06:33.8]}
22... Qxa2 {[%clk 0:01:11.9]} 23. Ra1 {[%clk 0:06:27.4]} 23... Qc4 {[%clk
0:01:11.4]} 24. Qf3 {[%clk 0:06:27.6]} 24... Qc7 {[%clk 0:01:07.5]} 25. Rxa6
{[%clk 0:05:07.5]} 25... Qxe7 {[%clk 0:01:07.2]} 26. Nb4 {[%clk 0:05:06.3]}
26... Bh6 {[%clk 0:01:07.8]} 27. Nc6 {[%clk 0:05:05.7]} 27... Qh4 {[%clk
0:00:31.3]} 28. Ne7+ {[%clk 0:04:31.3]} 28... Qxe7 {[%clk 0:00:30.5]} 0-1

[Event "GrandPrix_29.05"]
[Site "Chess.com"]
[Date "2020.05.29"]
[Round "1"]
[White "tsaruk_maks"]
[Black "Guenplen"]
[Result "1/2-1/2"]
[WhiteElo "2208"]
[BlackElo "1527"]
[TimeControl "600+2"]
[EndTime "9:18:11 PDT"]
[Termination "Game drawn by agreement"]

1. e4 {[%clk 0:10:01.3]} 1... c5 {[%clk 0:09:57.2]} 2. Nf3 {[%clk 0:10:00.2]}
2... e6 {[%clk 0:09:55.6]} 3. d4 {[%clk 0:10:01.2]} 3... cxd4 {[%clk 0:09:56.6]}
4. Nxd4 {[%clk 0:10:03.1]} 4... Nf6 {[%clk 0:09:57.9]} 5. Nc3 {[%clk 0:10:03.7]}
5... Nc6 {[%clk 0:09:58.9]} 6. Ndb5 {[%clk 0:10:04.2]} 6... Bc5 {[%clk
0:09:59.4]} 7. Bf4 {[%clk 0:10:01.5]} 7... O-O {[%clk 0:09:59.8]} 8. Bc7 {[%clk
0:10:02.7]} 8... Qe7 {[%clk 0:10:00.9]} 9. Bd6 {[%clk 0:10:04]} 9... Bxd6 {[%clk
0:10:02.2]} 10. Qxd6 {[%clk 0:10:05.9]} 10... Qd8 {[%clk 0:10:03.5]} 11. O-O-O
{[%clk 0:09:25.3]} 11... a6 {[%clk 0:10:04]} 12. Nd4 {[%clk 0:09:24.9]} 12...
Na5 {[%clk 0:10:04.1]} 13. Nb3 {[%clk 0:08:55.2]} 13... Nxb3+ {[%clk 0:09:33.6]}
14. axb3 {[%clk 0:08:26]} 14... b5 {[%clk 0:09:24]} 15. e5 {[%clk 0:08:17.2]}
15... Ne8 {[%clk 0:09:23.1]} 16. Qd4 {[%clk 0:06:55.9]} 16... Rb8 {[%clk
0:08:22.3]} 17. Ne4 {[%clk 0:06:20.7]} 17... Bb7 {[%clk 0:06:04.4]} 18. Nc5
{[%clk 0:06:06.4]} 18... Bc6 {[%clk 0:06:05.1]} 19. Nxd7 {[%clk 0:03:56.9]}
19... Bxd7 {[%clk 0:05:59.3]} 20. Qxd7 {[%clk 0:03:58.8]} 20... Qg5+ {[%clk
0:05:56.7]} 21. Kb1 {[%clk 0:03:56.4]} 21... Qxe5 {[%clk 0:05:54.5]} 22. Qd4
{[%clk 0:03:43.1]} 22... Qxd4 {[%clk 0:05:36.6]} 23. Rxd4 {[%clk 0:03:43.7]}
23... Nf6 {[%clk 0:05:38.5]} 24. Be2 {[%clk 0:03:43.9]} 24... e5 {[%clk
0:04:52.8]} 25. Rd6 {[%clk 0:03:28.3]} 25... Ne4 {[%clk 0:04:10.4]} 26. Rxa6
{[%clk 0:03:26.6]} 26... Nxf2 {[%clk 0:04:11.5]} 27. Rf1 {[%clk 0:03:03.8]}
27... Ne4 {[%clk 0:04:11.5]} 28. Rd1 {[%clk 0:02:22.2]} 1/2-1/2

[Event "GrandPrix_29.05"]
[Site "Chess.com"]
[Date "2020.05.29"]
[Round "1"]
[White "Kiril1965"]
[Black "fujiwara_hoga"]
[Result "1-0"]
[WhiteElo "1854"]
[BlackElo "2182"]
[TimeControl "600+2"]
[EndTime "9:18:13 PDT"]
[Termination "Kiril1965 won by resignation"]

1. d4 {[%clk 0:10:00.3]} 1... Nf6 {[%clk 0:09:56]} 2. Nf3 {[%clk 0:09:58.7]}
2... g6 {[%clk 0:09:56.1]} 3. c3 {[%clk 0:09:53.2]} 3... Bg7 {[%clk 0:09:56.5]}
4. Bg5 {[%clk 0:09:53.5]} 4... O-O {[%clk 0:09:56.4]} 5. Nbd2 {[%clk 0:09:53]}
5... d5 {[%clk 0:09:55.1]} 6. e3 {[%clk 0:09:53.4]} 6... b6 {[%clk 0:09:31.3]}
7. b4 {[%clk 0:09:37.6]} 7... c5 {[%clk 0:09:02.1]} 8. Be2 {[%clk 0:09:08.4]}
8... c4 {[%clk 0:08:07.7]} 9. Ne5 {[%clk 0:08:56.3]} 9... Ne8 {[%clk 0:07:49]}
10. Nexc4 {[%clk 0:08:36.9]} 10... Bf5 {[%clk 0:06:25.5]} 11. Nb2 {[%clk
0:08:19.4]} 11... Nc6 {[%clk 0:06:22.7]} 12. O-O {[%clk 0:08:11.9]} 12... f6
{[%clk 0:06:21.1]} 13. Bh4 {[%clk 0:08:09.2]} 13... Nd6 {[%clk 0:06:13.9]} 14.
Qb3 {[%clk 0:07:47.1]} 14... Be6 {[%clk 0:05:25]} 15. e4 {[%clk 0:07:23.1]}
15... Ne8 {[%clk 0:05:10.7]} 16. exd5 {[%clk 0:07:08.6]} 16... Bxd5 {[%clk
0:05:10.1]} 17. Bc4 {[%clk 0:07:03.9]} 17... e6 {[%clk 0:05:08.7]} 18. Rfe1
{[%clk 0:07:03.6]} 18... Nc7 {[%clk 0:05:08.2]} 19. Bg3 {[%clk 0:07:01.1]} 19...
Rc8 {[%clk 0:05:00.6]} 20. a4 {[%clk 0:06:53.6]} 20... f5 {[%clk 0:04:44.9]} 21.
Nd3 {[%clk 0:06:18.5]} 21... g5 {[%clk 0:04:35.2]} 22. Bxc7 {[%clk 0:06:14]}
22... Rxc7 {[%clk 0:04:32.7]} 23. Bxd5 {[%clk 0:06:15]} 23... exd5 {[%clk
0:04:28.3]} 24. Nf3 {[%clk 0:06:01.2]} 24... h6 {[%clk 0:04:01.7]} 25. Re6
{[%clk 0:05:46]} 25... Qd7 {[%clk 0:03:50.2]} 26. Rae1 {[%clk 0:05:42.2]} 26...
Kh7 {[%clk 0:03:47.4]} 27. h3 {[%clk 0:05:01.6]} 27... Rfc8 {[%clk 0:03:43.9]}
28. Qb1 {[%clk 0:04:51.6]} 28... Nd8 {[%clk 0:03:35.9]} 29. Re7 {[%clk
0:04:17.8]} 29... Qxe7 {[%clk 0:03:24]} 30. Rxe7 {[%clk 0:04:17.1]} 30... Rxe7
{[%clk 0:03:25.9]} 31. Nde5 {[%clk 0:04:17.9]} 31... Rxc3 {[%clk 0:02:40.9]} 32.
Qxf5+ {[%clk 0:04:14.3]} 32... Kg8 {[%clk 0:02:41.4]} 33. Ng6 {[%clk 0:04:05.9]}
33... Re8 {[%clk 0:02:27.9]} 34. Qd7 {[%clk 0:03:55.5]} 34... Re6 {[%clk
0:01:58]} 35. Qxd8+ {[%clk 0:03:50.5]} 35... Kh7 {[%clk 0:01:57.7]} 36. Ne7
{[%clk 0:03:45.4]} 1-0

[Event "GrandPrix_29.05"]
[Site "Chess.com"]
[Date "2020.05.29"]
[Round "1"]
[White "fm_magua"]
[Black "Gurvich_Vitaly"]
[Result "0-1"]
[WhiteElo "1763"]
[BlackElo "2328"]
[TimeControl "600+2"]
[EndTime "9:18:15 PDT"]
[Termination "Gurvich_Vitaly won by resignation"]

1. e4 {[%clk 0:10:01.9]} 1... c5 {[%clk 0:10:00.5]} 2. Nf3 {[%clk 0:10:02.6]}
2... Nc6 {[%clk 0:10:01.4]} 3. d4 {[%clk 0:10:03]} 3... cxd4 {[%clk 0:10:02.3]}
4. Nxd4 {[%clk 0:10:03.8]} 4... e5 {[%clk 0:10:03.3]} 5. Nb5 {[%clk 0:10:02.8]}
5... d6 {[%clk 0:10:03.1]} 6. N1c3 {[%clk 0:10:00.4]} 6... a6 {[%clk 0:10:01.9]}
7. Na3 {[%clk 0:10:01.5]} 7... b5 {[%clk 0:09:58.3]} 8. Nd5 {[%clk 0:10:01.7]}
8... Nge7 {[%clk 0:09:58.4]} 9. Bg5 {[%clk 0:09:58.2]} 9... h6 {[%clk
0:09:56.9]} 10. Bh4 {[%clk 0:09:58.6]} 10... Qa5+ {[%clk 0:09:53.7]} 11. c3
{[%clk 0:09:57.9]} 11... Nxd5 {[%clk 0:09:10.9]} 12. exd5 {[%clk 0:09:45.9]}
12... Nd4 {[%clk 0:08:59.7]} 13. Bd3 {[%clk 0:09:31.2]} 13... Nf5 {[%clk
0:08:53.6]} 14. Bg3 {[%clk 0:09:19.7]} 14... h5 {[%clk 0:08:29]} 15. f4 {[%clk
0:09:09.7]} 15... h4 {[%clk 0:07:11.1]} 16. Bf2 {[%clk 0:09:08.6]} 16... exf4
{[%clk 0:07:08.6]} 17. Qf3 {[%clk 0:08:42.2]} 17... g5 {[%clk 0:06:43.4]} 18.
O-O-O {[%clk 0:08:12.7]} 18... Bg7 {[%clk 0:06:33.4]} 19. Rhe1+ {[%clk
0:08:05.9]} 19... Kf8 {[%clk 0:06:31.9]} 20. g4 {[%clk 0:07:34.7]} 20... hxg3
{[%clk 0:05:43.7]} 21. hxg3 {[%clk 0:07:35.5]} 21... Be5 {[%clk 0:03:43.7]} 22.
Rxe5 {[%clk 0:07:14.3]} 22... dxe5 {[%clk 0:03:41.8]} 23. d6 {[%clk 0:07:15.8]}
23... Rb8 {[%clk 0:03:39.9]} 24. Bc5 {[%clk 0:07:05.2]} 24... Be6 {[%clk
0:03:34.1]} 25. Qe4 {[%clk 0:06:45.7]} 25... f6 {[%clk 0:03:30.5]} 26. g4 {[%clk
0:06:43.8]} 26... Nh4 {[%clk 0:03:18.7]} 27. Qc6 {[%clk 0:06:32]} 27... Kg7
{[%clk 0:03:10.4]} 28. d7 {[%clk 0:06:18.8]} 28... Bxg4 {[%clk 0:02:29.6]} 29.
Be7 {[%clk 0:06:14.3]} 29... Rh6 {[%clk 0:02:24.4]} 30. Rg1 {[%clk 0:05:28.3]}
30... Bf3 {[%clk 0:02:16.8]} 31. Bxf6+ {[%clk 0:05:12.9]} 31... Rxf6 {[%clk
0:02:16.7]} 32. Rxg5+ {[%clk 0:05:14]} 32... Kf7 {[%clk 0:02:17.7]} 33. Qc8
{[%clk 0:05:08.9]} 33... Qd8 {[%clk 0:02:08]} 34. Bc4+ {[%clk 0:04:17.2]} 34...
bxc4 {[%clk 0:01:36.5]} 35. Qxc4+ {[%clk 0:04:15.8]} 35... Re6 {[%clk
0:01:33.3]} 36. Rxe5 {[%clk 0:04:14.9]} 36... Qxd7 {[%clk 0:01:33.8]} 37. Qxf4+
{[%clk 0:04:15.7]} 37... Rf6 {[%clk 0:01:33.2]} 38. Qc4+ {[%clk 0:04:16.7]}
38... Kg6 {[%clk 0:01:23]} 0-1

[Event "GrandPrix_29.05"]
[Site "Chess.com"]
[Date "2020.05.29"]
[Round "1"]
[White "FCLitras"]
[Black "Tyoma88888"]
[Result "1/2-1/2"]
[WhiteElo "1529"]
[BlackElo "2211"]
[TimeControl "600+2"]
[EndTime "9:18:23 PDT"]
[Termination "Game drawn by repetition"]

1. d4 {[%clk 0:10:01.7]} 1... d5 {[%clk 0:09:59.6]} 2. c4 {[%clk 0:09:59.9]}
2... e6 {[%clk 0:10:00.4]} 3. Nf3 {[%clk 0:09:55.6]} 3... Nf6 {[%clk 0:09:51.5]}
4. g3 {[%clk 0:09:55.1]} 4... Be7 {[%clk 0:09:52.1]} 5. Bg2 {[%clk 0:09:55.6]}
5... O-O {[%clk 0:09:53.5]} 6. O-O {[%clk 0:09:49.9]} 6... dxc4 {[%clk
0:09:53.9]} 7. Qc2 {[%clk 0:09:49.9]} 7... a6 {[%clk 0:09:43.8]} 8. a4 {[%clk
0:09:32.6]} 8... Bd7 {[%clk 0:09:44.7]} 9. Qxc4 {[%clk 0:09:32.7]} 9... Bc6
{[%clk 0:09:45.6]} 10. Bf4 {[%clk 0:09:33.4]} 10... a5 {[%clk 0:09:34.3]} 11.
Nc3 {[%clk 0:09:09.9]} 11... Na6 {[%clk 0:09:12.5]} 12. Rfd1 {[%clk 0:08:55.5]}
12... Nb4 {[%clk 0:09:10.6]} 13. Ne5 {[%clk 0:08:49.2]} 13... Bxg2 {[%clk
0:09:09.3]} 14. Kxg2 {[%clk 0:08:50.2]} 14... c6 {[%clk 0:09:01.7]} 15. Rac1
{[%clk 0:08:47.5]} 15... Rc8 {[%clk 0:08:53.5]} 16. e4 {[%clk 0:07:51.6]} 16...
Nd7 {[%clk 0:08:35.7]} 17. Nxd7 {[%clk 0:07:31.1]} 17... Qxd7 {[%clk 0:08:37.6]}
18. Be3 {[%clk 0:07:26.2]} 18... Rfd8 {[%clk 0:08:33.3]} 19. Qe2 {[%clk
0:07:16.1]} 19... f5 {[%clk 0:07:50.3]} 20. f3 {[%clk 0:07:14.4]} 20... Kh8
{[%clk 0:07:43.8]} 21. h4 {[%clk 0:06:04.9]} 21... Bf6 {[%clk 0:07:01.8]} 22. e5
{[%clk 0:05:01.8]} 22... Be7 {[%clk 0:07:01.1]} 23. Bg5 {[%clk 0:05:00.6]} 23...
h6 {[%clk 0:06:55.4]} 24. Bxe7 {[%clk 0:04:50.2]} 24... Qxe7 {[%clk 0:06:57.3]}
25. f4 {[%clk 0:04:50.8]} 25... Nd5 {[%clk 0:06:55.7]} 26. Qe1 {[%clk
0:03:48.2]} 26... Rc7 {[%clk 0:06:21.8]} 27. Na2 {[%clk 0:03:38.4]} 27... Rcd7
{[%clk 0:06:16.5]} 28. Kh3 {[%clk 0:03:28]} 28... Nb4 {[%clk 0:05:42]} 29. Nxb4
{[%clk 0:03:26.8]} 29... axb4 {[%clk 0:05:43.9]} 30. Rc4 {[%clk 0:03:22.9]}
30... c5 {[%clk 0:04:56.7]} 31. Rxc5 {[%clk 0:03:20.7]} 31... Rxd4 {[%clk
0:04:54.4]} 32. Rxd4 {[%clk 0:02:58.8]} 32... Rxd4 {[%clk 0:04:56.3]} 33. Rc8+
{[%clk 0:02:57]} 33... Kh7 {[%clk 0:04:56.3]} 34. Qc1 {[%clk 0:02:57.5]} 34...
Qd7 {[%clk 0:04:49.1]} 35. Qc5 {[%clk 0:02:13]} 35... Rd1 {[%clk 0:04:30]} 36.
Rc7 {[%clk 0:01:56.8]} 36... Rh1+ {[%clk 0:04:17.1]} 37. Kg2 {[%clk 0:01:56.6]}
37... Qd1 {[%clk 0:04:18.1]} 38. Rxg7+ {[%clk 0:01:53]} 38... Kxg7 {[%clk
0:04:19.1]} 39. Qe7+ {[%clk 0:01:54]} 39... Kg8 {[%clk 0:04:16.3]} 40. Qe8+
{[%clk 0:01:54.9]} 40... Kg7 {[%clk 0:04:17.6]} 41. Qe7+ {[%clk 0:01:56.1]}
41... Kg8 {[%clk 0:03:47.2]} 42. Qe8+ {[%clk 0:01:56.8]} 42... Kg7 {[%clk
0:03:48.8]} 43. Qe7+ {[%clk 0:01:57.9]} 1/2-1/2

[Event "GrandPrix_29.05"]
[Site "Chess.com"]
[Date "2020.05.29"]
[Round "1"]
[White "VSanduleac"]
[Black "Kostya_Nikologorskiy"]
[Result "1-0"]
[WhiteElo "2317"]
[BlackElo "2275"]
[TimeControl "600+2"]
[EndTime "9:18:42 PDT"]
[Termination "VSanduleac won by resignation"]

1. e4 {[%clk 0:09:59.8]} 1... e6 {[%clk 0:10:00.7]} 2. Qe2 {[%clk 0:09:59.7]}
2... c5 {[%clk 0:09:59.9]} 3. Nf3 {[%clk 0:10:00.2]} 3... Nc6 {[%clk 0:10:01]}
4. g3 {[%clk 0:09:59.8]} 4... g6 {[%clk 0:09:23]} 5. Bg2 {[%clk 0:09:58.1]} 5...
Bg7 {[%clk 0:09:23.9]} 6. O-O {[%clk 0:09:58.5]} 6... Nge7 {[%clk 0:09:24.4]} 7.
c3 {[%clk 0:09:58.8]} 7... O-O {[%clk 0:09:23.5]} 8. Rd1 {[%clk 0:09:56.7]} 8...
d5 {[%clk 0:09:16.2]} 9. e5 {[%clk 0:09:54.9]} 9... d4 {[%clk 0:09:10.9]} 10. d3
{[%clk 0:09:55]} 10... Qc7 {[%clk 0:09:05.7]} 11. cxd4 {[%clk 0:09:53.3]} 11...
cxd4 {[%clk 0:09:04.8]} 12. Bf4 {[%clk 0:09:52.7]} 12... Nd5 {[%clk 0:09:03.5]}
13. Na3 {[%clk 0:09:47.3]} 13... Nxf4 {[%clk 0:08:43.8]} 14. gxf4 {[%clk
0:09:47.3]} 14... a6 {[%clk 0:08:32.6]} 15. Rac1 {[%clk 0:09:45.5]} 15... Qe7
{[%clk 0:08:27.5]} 16. Nc4 {[%clk 0:09:42.7]} 16... f6 {[%clk 0:08:19.4]} 17.
Qe4 {[%clk 0:09:20]} 17... f5 {[%clk 0:07:39.4]} 18. Qe2 {[%clk 0:09:16.2]}
18... Bh6 {[%clk 0:07:40.4]} 19. Qd2 {[%clk 0:09:16.2]} 19... Bd7 {[%clk
0:07:31.5]} 20. h4 {[%clk 0:09:15.7]} 20... Rad8 {[%clk 0:07:23.3]} 21. Ng5
{[%clk 0:09:14.6]} 21... Bg7 {[%clk 0:07:03.1]} 22. Nd6 {[%clk 0:09:13.5]} 22...
h6 {[%clk 0:07:03.4]} 23. Nf3 {[%clk 0:09:03.8]} 23... Rb8 {[%clk 0:06:44.9]}
24. Rc2 {[%clk 0:08:47.1]} 24... Rfd8 {[%clk 0:06:27.5]} 25. b4 {[%clk
0:08:35.7]} 25... Bf8 {[%clk 0:06:17.3]} 26. a3 {[%clk 0:08:31.6]} 26... Qg7
{[%clk 0:06:13.8]} 27. Nc4 {[%clk 0:08:30.7]} 27... b5 {[%clk 0:05:15.6]} 28.
Nd6 {[%clk 0:08:09.3]} 28... Bxd6 {[%clk 0:05:06]} 29. exd6 {[%clk 0:08:09.4]}
29... Be8 {[%clk 0:05:07.4]} 30. Rdc1 {[%clk 0:08:06.7]} 30... Rxd6 {[%clk
0:05:07.8]} 31. Qe2 {[%clk 0:08:07.4]} 31... Rbd8 {[%clk 0:05:00.6]} 32. Rc5
{[%clk 0:08:04]} 32... Ne7 {[%clk 0:04:06.7]} 33. Rc7 {[%clk 0:07:59.6]} 33...
Bc6 {[%clk 0:02:55.4]} 34. R1xc6 {[%clk 0:07:33.8]} 34... Rxc6 {[%clk
0:02:50.9]} 35. Rxc6 {[%clk 0:07:33.9]} 35... Nxc6 {[%clk 0:02:52.5]} 36. Qxe6+
{[%clk 0:07:34.6]} 36... Kh7 {[%clk 0:02:47.7]} 37. Qxc6 {[%clk 0:07:35]} 37...
Qe7 {[%clk 0:02:30.4]} 38. Ne5 {[%clk 0:07:30.8]} 38... Rd6 {[%clk 0:02:30.9]}
39. Qc5 {[%clk 0:07:24.5]} 39... Re6 {[%clk 0:01:51.2]} 40. Bd5 {[%clk
0:07:14.8]} 40... Rd6 {[%clk 0:01:15.1]} 41. Bf7 {[%clk 0:07:06.8]} 41... g5
{[%clk 0:01:12.6]} 42. Bg6+ {[%clk 0:06:49.5]} 42... Kg7 {[%clk 0:01:11.2]} 43.
Bxf5 {[%clk 0:06:47.7]} 43... gxf4 {[%clk 0:01:08]} 44. Be4 {[%clk 0:06:40.1]}
44... Kf6 {[%clk 0:00:52]} 45. Ng6 {[%clk 0:06:34.5]} 45... Qe6 {[%clk 0:00:50]}
46. Nxf4 {[%clk 0:06:21.5]} 46... Qg4+ {[%clk 0:00:50.8]} 47. Ng2 {[%clk
0:06:21.9]} 47... Rd8 {[%clk 0:00:41.9]} 48. Qb6+ {[%clk 0:06:12.3]} 48... Ke7
{[%clk 0:00:43.2]} 49. Qc7+ {[%clk 0:06:11.5]} 49... Rd7 {[%clk 0:00:42.5]} 50.
Qe5+ {[%clk 0:06:11.8]} 50... Kd8 {[%clk 0:00:43.4]} 51. Bf5 {[%clk 0:06:08.7]}
51... Qd1+ {[%clk 0:00:44.2]} 52. Kh2 {[%clk 0:06:08.8]} 52... Rf7 {[%clk
0:00:17.9]} 53. Qd6+ {[%clk 0:06:06.2]} 53... Ke8 {[%clk 0:00:19.1]} 54. Bg6
{[%clk 0:06:03.8]} 1-0